bitfinex/quotes_ETHUSD_20250602
["timestamp","ask_amount","ask_price","bid_price","bid_amount"]
[1748850144812,3.50442897,2505.6,2505.5,2.39473159]
[1748850145796,3.50442897,2505.6,2505.3,2.39491211]
[1748850146071,3.50442897,2505.6,2505.4,2.39482717]
[1748850150542,3.50442897,2505.6,2505.3,2.39487693]
[1748850150893,3.93470187,2505.6,2505.3,2.39486456]
[1748850151115,4.26032897,2505.4,2504.7,2.39541228]
[1748850151423,4.26032897,2505.4,2504.8,2.39534219]
[1748850151424,3.50442897,2505.0,2504.8,2.39534219]
[1748850152089,3.50442897,2505.0,2504.7,6.49244726]
[1748850152429,3.50442897,2505.0,2504.6,3.1763684]
[1748850152430,3.50442897,2505.0,2504.6,0.7808]
[1748850152589,3.50442897,2504.8,2504.5,2.39567474]
[1748850152927,3.50442897,2504.8,2504.7,2.39549646]
[1748850153509,4.30822897,2505.0,2504.7,2.39549646]
[1748850154821,4.30822897,2505.0,2504.8,2.39532878]
[1748850156129,4.30822897,2505.0,2504.7,2.39544656]
[1748850157425,0.8044,2505.3,2505.0,2.39513139]
[1748850157623,2.0352829,2505.3,2505.1,2.39505363]
[1748850157826,0.8044,2505.3,2504.8,0.8044]
[1748850158026,0.8044,2505.3,2505.1,2.39506335]
[1748850158626,8.8096,2505.5,2505.1,2.39506335]
[1748850158930,0.8096,2505.5,2505.3,2.3948748]
[1748850159127,0.781,2505.7,2505.3,2.39492276]
[1748850159627,8.781,2505.7,2505.3,2.39490958]
[1748850159926,8.781,2505.7,2505.4,2.39476542]
[1748850160721,0.781,2505.7,2505.3,2.39490958]
[1748850160923,0.781,2505.7,2505.4,2.39482717]
[1748850161125,8.8031,2505.9,2505.1,3.1801003]
[1748850161431,8.8031,2505.9,2505.6,2.39459701]
[1748850161622,10.38037068,2505.9,2505.6,2.39459701]
[1748850162161,10.38037068,2505.9,2505.5,2.39468853]
[1748850162449,10.38037068,2505.9,2505.7,2.39447761]
[1748850162450,0.01,2505.9,2505.7,2.39447761]
[1748850162660,0.01,2505.9,2505.8,2.39444488]
[1748850162804,0.01,2505.9,2505.7,2.39449483]
[1748850163201,0.01,2505.9,2505.6,2.39462677]
[1748850163804,0.01,2505.9,2505.8,2.39444488]
[1748850174046,0.01,2505.9,2505.8,3.18034488]
[1748850174356,0.01,2505.9,2505.8,6.68477385]
[1748850174517,0.01,2505.9,2505.8,7.27467306]
[1748850174713,0.01,2505.9,2505.8,7.65253328]
[1748850175033,0.01,2505.9,2505.8,7.61263407]
[1748850175217,0.01,2505.9,2505.8,7.61258464]
[1748850176158,0.01,2505.9,2505.8,15.61258464]
[1748850177854,0.01,2505.9,2505.8,16.08358713]
[1748850179348,0.01,2505.9,2505.8,15.23477385]
[1748850179537,0.01,2505.9,2505.8,16.08198325]
[1748850179733,0.01,2505.9,2505.8,15.61131136]
[1748850180860,0.01,2505.9,2505.8,20.77331136]
[1748850181895,0.01,2506.9,2506.8,2.3934897]
[1748850182097,0.01,2506.9,2506.8,10.81831867]
[1748850182377,0.01,2506.9,2506.8,7.3138897]
[1748850182539,0.01,2506.9,2506.8,6.4864897]
[1748850182740,0.01,2506.9,2506.8,6.4854897]
[1748850183487,0.01,2506.9,2506.8,2.3934897]
[1748850185682,0.01,2506.9,2506.8,3.16564104]
[1748850188162,0.01,2506.9,2506.8,7.25664104]
[1748850189093,0.01,2506.9,2506.8,6.50064104]
[1748850191863,0.01,2506.9,2506.8,2.40964104]
[1748850192063,0.01,2506.9,2506.8,6.50064104]
[1748850193311,0.01,2506.9,2506.8,6.49964104]
[1748850193984,0.01,2506.9,2506.8,2.40964104]
[1748850194190,0.01,2506.9,2506.8,6.49964104]
[1748850198380,0.01,2506.9,2506.8,2.40964104]
[1748850198711,0.01,2506.9,2506.8,6.49964104]
[1748850201914,0.01,2506.9,2506.8,2.40964104]
[1748850202118,0.01,2506.9,2506.8,6.49964104]
[1748850203201,0.01,2506.9,2506.8,2.40964104]
[1748850203525,0.01,2506.9,2506.8,6.49864104]
[1748850204524,0.01,2506.9,2506.8,6.87704084]
[1748850204724,0.01,2506.9,2506.8,2.78804084]
[1748850204929,0.01,2506.9,2506.8,6.87704084]
[1748850207804,0.01,2506.9,2506.8,2.78804084]
[1748850208005,0.01,2506.9,2506.8,4.48355114]
[1748850208213,0.01,2506.9,2506.8,2.78804084]
[1748850208419,0.01,2506.9,2506.8,6.87744982]
[1748850208747,0.01,2506.9,2506.8,0.39496012]
[1748850208951,0.4388429,2506.9,2506.8,0.39496012]
[1748850209237,0.4388429,2506.9,2506.8,6.49864104]
[1748850209443,0.01,2506.9,2506.8,6.49864104]
[1748850209845,0.82526715,2506.9,2506.8,0.01615134]
[1748850210005,0.784,2506.9,2506.8,0.01615134]
[1748850211246,11.21866138,2506.9,2506.8,0.01615134]
[1748850211477,11.17739423,2506.9,2506.8,0.01615134]
[1748850211669,12.8849071,2506.9,2506.8,0.01615134]
[1748850213879,2.39360999,2506.7,2506.1,2.39411486]
[1748850214174,0.8172,2506.4,2506.2,2.39404722]
[1748850214386,0.8172,2506.4,2506.1,4.089]
[1748850215347,0.8172,2506.4,2506.0,2.39422921]
[1748850215547,3.50442897,2506.3,2506.0,6.48322921]
[1748850215769,3.50442897,2506.3,2505.9,4.089]
[1748850215958,3.50442897,2506.3,2506.0,2.39419411]
[1748850216770,3.50442897,2506.3,2506.1,2.39413248]
[1748850217081,4.00415802,2506.3,2506.1,2.39413248]
[1748850217885,1.49286153,2506.4,2506.2,2.39406272]
[1748850217886,0.8172,2506.4,2506.2,2.39406272]
[1748850218084,0.8029,2506.8,2506.7,2.39358519]
[1748850218747,0.8029,2506.8,2506.5,2.39368609]
[1748850219855,0.8029,2506.8,2506.5,2.39377618]
[1748850220060,0.8029,2506.8,2506.6,2.39367507]
[1748850220274,4.73906187,2506.8,2506.2,2.39405762]
[1748850220461,3.50442897,2506.6,2506.3,4.089]
[1748850220782,3.50442897,2506.6,2506.3,6.48295777]
[1748850221171,3.50442897,2506.6,2506.3,4.089]
[1748850221367,0.4303929,2506.5,2506.3,4.089]
[1748850221574,0.4303929,2506.5,2506.3,6.48294323]
[1748850221769,0.4303929,2506.5,2506.3,2.39394323]
[1748850222174,0.4303929,2506.5,2506.3,2.39392035]
[1748850222689,0.4303929,2506.5,2506.4,2.39387168]
[1748850224162,0.7995,2506.7,2506.4,2.39387168]
[1748850224368,0.7995,2506.7,2506.5,2.39377468]
[1748850224565,0.7995,2506.7,2506.5,2.39374468]
[1748850224970,0.7995,2506.7,2506.4,2.39387168]
[1748850225561,0.7995,2506.7,2506.5,2.39374298]
[1748850225803,0.4303929,2506.6,2506.5,2.39374298]
[1748850228282,0.7995,2506.7,2506.6,2.39368068]
[1748850234518,0.01,2506.9,2506.8,2.3934897]
[1748850241038,0.01,2506.9,2506.7,4.088]
[1748850241039,0.7516,2506.8,2506.7,6.48154442]
[1748850241833,0.01,2506.9,2506.8,2.3934897]
[1748850242143,0.01,2506.9,2506.8,4.12901657]
[1748850242641,0.01,2506.9,2506.8,4.08912989]
[1748850245928,0.01,2506.9,2506.8,3.7107897]
[1748850246137,0.01,2506.9,2506.8,4.08847494]
[1748850247843,0.01,2506.9,2506.8,8.17547494]
[1748850249355,0.01,2506.9,2506.8,3.53847494]
[1748850249518,0.01,2506.9,2506.8,6.4804897]
[1748850249724,0.01,2506.9,2506.8,6.4794897]
[1748850250614,0.01,2506.9,2506.8,11.69425114]
[1748850251848,0.01,2506.9,2506.8,8.18982217]
[1748850252347,0.01,2506.9,2506.8,7.8123897]
[1748850252647,0.01,2506.9,2506.8,8.18980393]
[1748850254647,0.01,2506.9,2506.8,7.8123897]
[1748850254948,0.01,2506.9,2506.8,8.18981954]
[1748850256349,0.01,2506.9,2506.8,4.10381954]
[1748850256557,0.01,2506.9,2506.8,8.18981954]
[1748850259723,0.01,2506.9,2506.8,4.10381954]
[1748850259927,0.01,2506.9,2506.8,6.85591954]
[1748850260420,0.01,2506.9,2506.8,2.77091954]
[1748850260621,0.01,2506.9,2506.8,2.3934897]
[1748850260867,0.01,2506.9,2506.8,2.77134835]
[1748850261781,0.01,2506.9,2506.8,3.53474835]
[1748850261962,0.01,2506.9,2506.8,7.58917732]
[1748850263280,0.01,2506.9,2506.8,12.33917732]
[1748850263485,0.01,2506.9,2506.8,12.3394406]
[1748850265144,0.01,2506.9,2506.8,7.5894406]
[1748850266645,0.01,2506.9,2506.8,8.06209302]
[1748850267991,0.01,2506.9,2506.8,8.06283387]
[1748850268446,0.01,2506.9,2506.8,7.58976987]
[1748850269351,0.01,2506.9,2506.8,8.65476987]
[1748850269555,0.01,2506.9,2506.8,7.58976987]
[1748850269861,0.01,2506.9,2506.8,12.73976987]
[1748850272159,0.01,2506.9,2506.8,12.73876987]
[1748850272481,0.01,2506.9,2506.8,12.73913568]
[1748850274804,0.01,2506.9,2506.8,7.59013568]
[1748850275002,0.01,2506.9,2506.8,11.67413568]
[1748850276688,0.01,2506.9,2506.8,11.29531867]
[1748850276872,0.01,2506.9,2506.8,7.59005931]
[1748850277065,0.01,2506.9,2506.8,10.91065931]
[1748850277274,0.01,2506.9,2506.8,11.38410887]
[1748850278467,0.01,2506.9,2506.8,10.91065931]
[1748850281028,0.01,2506.9,2506.8,15.66065931]
[1748850281183,0.01,2506.9,2506.8,16.48455883]
[1748850281887,0.01,2506.9,2506.8,16.48454967]
[1748850285723,0.01,2506.9,2506.8,16.48446352]
[1748850286396,0.01,2506.9,2506.8,24.48446352]
[1748850286717,0.01,2506.9,2506.8,25.54746352]
[1748850290109,0.01,2506.9,2506.8,24.30164952]
[1748850290930,0.22819674,2507.9,2507.8,2.39253528]
[1748850291121,0.22819674,2507.9,2507.8,6.85393716]
[1748850291531,0.22819674,2507.9,2507.8,7.02553528]
[1748850291705,0.22819674,2507.9,2507.8,7.4035245]
[1748850292338,0.22819674,2507.9,2507.8,6.8535245]
[1748850293404,0.02,2507.9,2507.8,6.8535245]
[1748850294420,0.02,2507.9,2507.8,6.47553528]
[1748850294614,0.02,2507.9,2507.8,6.85325469]
[1748850295241,0.02,2507.9,2507.8,6.85225469]
[1748850295544,0.02,2507.9,2507.8,6.47453528]
[1748850296336,0.22815248,2507.9,2507.8,6.47453528]
[1748850296742,0.22815248,2507.9,2507.8,3.32013927]
[1748850297046,0.22815248,2507.9,2507.8,3.71385606]
[1748850297346,0.7751,2507.9,2507.8,2.39253528]
[1748850297514,0.7751,2507.9,2507.8,6.47453528]
[1748850300348,0.7751,2507.9,2507.7,2.39261227]
[1748850300549,0.8205,2507.8,2507.7,2.39261227]
[1748850304641,0.8205,2507.8,2507.6,2.39268856]
[1748850304955,0.8205,2507.8,2507.7,2.39263069]
[1748850305138,0.8205,2507.8,2507.6,2.39270174]
[1748850305344,0.8205,2507.8,2507.1,4.75]
[1748850305657,0.8205,2507.8,2507.0,0.55]
[1748850305658,0.7625,2507.2,2507.0,2.39323212]
[1748850306135,0.7625,2507.2,2507.1,2.3932033]
[1748850306739,0.7625,2507.2,2507.1,2.77127188]
[1748850306945,0.7565,2507.8,2507.5,2.39278297]
[1748850307179,0.7565,2507.8,2507.5,2.39279637]
[1748850307318,0.8053,2507.7,2507.5,2.3927456]
[1748850307518,0.8053,2507.7,2507.3,6.47394954]
[1748850307856,0.8053,2507.7,2507.5,2.39281648]
[1748850308229,0.8053,2507.7,2507.4,2.3928973]
[1748850308417,0.8053,2507.7,2507.6,2.39272611]
[1748850312749,0.02,2507.9,2507.8,2.39253528]
[1748850319163,0.02,2507.9,2507.8,2.77036206]
[1748850319362,0.02,2507.9,2507.7,2.39261127]
[1748850319528,0.7977,2507.8,2507.7,2.39261127]
[1748850320383,0.7977,2507.8,2507.5,2.39279261]
[1748850320525,0.7977,2507.8,2507.6,6.85165587]
[1748850320725,0.7977,2507.8,2507.7,2.39263069]
[1748850322768,0.02,2507.9,2507.8,2.39253528]
[1748850329874,0.8356,2507.9,2507.7,2.39259054]
[1748850330069,0.8356,2507.9,2507.6,2.39269304]
[1748850330268,0.8356,2507.9,2507.7,2.39262259]
[1748850331069,0.8356,2507.9,2507.8,2.39253528]
[1748850331854,0.8356,2507.9,2507.5,2.39281968]
[1748850332160,0.8356,2507.9,2507.6,2.39270422]
[1748850332458,0.7647,2507.8,2507.5,2.39280969]
[1748850333498,0.7647,2507.8,2507.6,2.39272312]
[1748850333660,0.7647,2507.8,2507.5,2.39277826]
[1748850334393,4.26912897,2507.8,2507.5,2.39277826]
[1748850334601,4.69804187,2507.8,2507.5,2.39277826]
[1748850335398,1.1936129,2507.8,2507.6,2.39270404]
[1748850335560,0.7647,2507.8,2507.6,2.39270404]
[1748850335896,0.7647,2507.8,2507.1,7.14316865]
[1748850336099,0.7647,2507.8,2507.6,2.39272513]
[1748850337898,0.7647,2507.8,2507.7,2.39263069]
[1748850338575,0.02,2507.9,2507.8,2.39253528]
[1748850338971,0.02,2507.9,2507.7,2.39260027]
[1748850339402,0.02,2507.9,2507.5,2.39279252]
[1748850339403,0.7909,2507.8,2507.5,2.39279252]
[1748850341821,0.7909,2507.8,2507.4,6.47386185]
[1748850342101,0.7909,2507.8,2507.5,2.39281528]
[1748850343607,1.46167144,2507.8,2507.4,2.39290482]
[1748850344198,1.46167144,2507.8,2507.5,2.39282055]
[1748850344974,1.46167144,2507.8,2507.6,2.39271679]
[1748850345176,0.7909,2507.8,2507.7,2.39263069]
[1748850346218,0.02,2507.9,2507.8,2.39253528]
[1748850346724,0.02,2507.9,2507.7,2.39259233]
[1748850347235,0.02,2507.9,2507.7,2.39255545]
[1748850347795,0.02,2507.9,2507.4,6.47388684]
[1748850348122,0.02,2507.9,2507.8,2.39253528]
[1748850352323,0.02,2507.9,2507.8,6.47353528]
[1748850359050,0.02,2507.9,2507.8,2.39253528]
[1748850359215,0.8435,2507.9,2507.4,4.75]
[1748850359549,0.8435,2507.9,2507.7,2.39254525]
[1748850359749,0.8435,2507.9,2507.8,2.39253528]
[1748850360408,0.8435,2507.9,2507.7,2.39260368]
[1748850360622,0.8435,2507.9,2507.8,2.39253528]
[1748850360822,0.8435,2507.9,2507.7,2.39263038]
[1748850361024,4.78272187,2507.9,2507.2,3.15236817]
[1748850361329,3.50442897,2507.7,2507.4,2.39290693]
[1748850362422,3.50442897,2507.7,2507.3,2.39297312]
[1748850362829,5.17339762,2507.9,2507.6,2.39272611]
[1748850363023,5.17339762,2507.9,2507.5,2.3927753]
[1748850363255,0.51733976,2507.8,2507.5,2.3927753]
[1748850363474,0.51733976,2507.8,2507.6,2.39269882]
[1748850364137,0.8435,2507.9,2507.8,2.39253528]
[1748850367685,0.8435,2507.9,2507.7,2.39259101]
[1748850368210,0.8435,2507.9,2507.8,2.39253528]
[1748850369690,0.8435,2507.9,2507.6,6.47269574]
[1748850369893,0.02,2507.9,2507.7,2.39257466]
[1748850370092,0.02,2507.9,2507.6,6.47267222]
[1748850370400,0.02,2507.9,2507.6,2.39267222]
[1748850370547,0.02,2507.9,2507.7,2.39262586]
[1748850370989,0.02,2507.9,2507.6,2.39270665]
[1748850371404,0.02,2507.9,2507.0,3.45522313]
[1748850371405,3.50442897,2507.8,2507.0,3.45522313]
[1748850371565,3.50442897,2507.8,2507.3,2.39294405]
[1748850371747,3.50442897,2507.8,2506.8,4.75]
[1748850371748,3.50442897,2507.8,2507.4,2.39290278]
[1748850372670,3.50442897,2507.8,2507.1,4.08]
[1748850372671,3.50442897,2507.6,2507.3,2.39300034]
[1748850373041,3.50442897,2507.8,2507.4,2.3929154]
[1748850373245,4.09611995,2507.8,2507.5,2.39275232]
[1748850374284,0.59169098,2507.8,2507.6,2.39272554]
[1748850374498,0.02,2507.9,2507.6,2.39272554]
[1748850375278,0.02,2507.9,2507.1,4.08]
[1748850375521,0.02,2507.9,2507.2,2.39310784]
[1748850375805,0.02,2507.9,2507.8,2.39253528]
[1748850387879,0.02,2507.9,2507.3,6.362]
[1748850388149,3.52442897,2507.9,2507.4,2.39284108]
[1748850388300,3.50442897,2507.7,2507.2,2.39306788]
[1748850388501,3.50442897,2507.5,2506.6,1.062]
[1748850388725,3.50442897,2507.1,2506.3,7.14389934]
[1748850388926,3.50442897,2507.1,2506.6,2.39362448]
[1748850389125,3.50442897,2506.7,2506.2,0.01621624]
[1748850389327,0.63102299,2507.1,2506.2,0.01621624]
[1748850389328,3.50442897,2506.5,2506.2,0.01621624]
[1748850389637,3.50442897,2506.5,2506.2,2.4102217]
[1748850390301,3.50442897,2506.5,2506.2,0.01621624]
[1748850390524,8.0,2506.9,2506.6,2.39367309]
[1748850390779,0.58975584,2507.1,2506.3,2.39394364]
[1748850390945,0.58975584,2507.1,2506.7,2.39352295]
[1748850392734,0.58975584,2507.1,2506.8,2.39347698]
[1748850392923,0.58975584,2507.1,2506.6,2.39361067]
[1748850393253,0.58975584,2507.1,2506.7,2.39352663]
[1748850393411,0.89854399,2507.0,2506.7,2.39352663]
[1748850393611,0.89854399,2507.0,2506.8,2.39341843]
[1748850394131,0.58975584,2507.1,2507.0,2.39329876]
[1748850394331,8.0,2507.3,2507.0,2.39329876]
[1748850394551,8.0,2507.3,2506.9,2.39335597]
[1748850395170,2.39231429,2508.1,2506.4,2.39380531]
[1748850395171,3.48536259,2508.3,2507.2,2.39305332]
[1748850395316,0.20820097,2508.2,2507.3,2.39295471]
[1748850395516,2.41245015,2507.9,2507.3,2.39295471]
[1748850395717,10.41245015,2507.9,2507.3,2.39295471]
[1748850396118,2.39255768,2507.8,2507.3,2.39295471]
[1748850397019,8.42829025,2507.9,2507.4,2.39287958]
[1748850397219,1.25112903,2507.8,2507.4,2.39287958]
[1748850397849,1.25112903,2507.8,2507.5,2.39274694]
[1748850398629,0.02,2507.9,2507.6,2.3927013]
[1748850399450,0.02,2507.9,2507.8,2.39253528]
[1748850399662,0.02,2507.9,2507.7,2.39259303]
[1748850399858,0.02,2507.9,2507.7,2.39262363]
[1748850400061,0.02,2507.9,2507.2,4.081]
[1748850400264,0.02,2507.9,2507.5,2.39281731]
[1748850400565,1.7894378,2507.9,2507.5,2.39275172]
[1748850401361,0.02,2507.9,2507.7,2.3925394]
[1748850402162,0.02,2507.9,2507.2,4.081]
[1748850402330,0.02,2507.9,2507.6,2.39270146]
[1748850402667,0.7759,2507.9,2507.6,2.39270146]
[1748850403760,0.7759,2507.9,2507.3,0.7762]
[1748850403972,0.7759,2507.9,2507.5,2.39275827]
[1748850404134,2.62091237,2507.9,2507.4,2.39287634]
[1748850404329,0.7972,2507.8,2507.4,2.39287634]
[1748850404753,0.7972,2507.8,2507.5,2.3928003]
[1748850404950,0.7972,2507.8,2506.8,2.39340789]
[1748850405167,0.827,2507.7,2507.0,4.083]
[1748850405365,0.827,2507.7,2507.5,2.39280847]
[1748850405566,1.09620124,2507.7,2507.5,2.39280847]
[1748850405870,0.827,2507.7,2507.5,2.39280847]
[1748850406532,0.827,2507.7,2507.4,2.39287143]
[1748850406727,0.827,2507.7,2507.5,2.39274616]
[1748850407163,0.827,2507.7,2507.2,2.39308162]
[1748850407350,0.7924,2507.6,2507.2,2.39308162]
[1748850407662,0.7924,2507.6,2506.9,0.7874]
[1748850407663,0.7924,2507.6,2507.3,2.39301203]
[1748850408043,0.8177,2507.5,2507.1,2.39318256]
[1748850408242,0.8177,2507.5,2507.2,2.39304983]
[1748850409037,0.8177,2507.5,2507.3,2.39299348]
[1748850409368,0.8177,2507.5,2507.2,2.39308093]
[1748850409762,0.8177,2507.5,2507.4,2.39291696]
[1748850410091,0.8177,2507.5,2507.3,2.3929661]
[1748850410296,2.39255217,2507.8,2507.3,2.3929661]
[1748850410573,0.7957,2507.9,2507.6,2.39267202]
[1748850410766,0.7957,2507.9,2507.7,2.39262946]
[1748850411268,0.7957,2507.9,2507.6,2.39268811]
[1748850411471,0.7957,2507.9,2507.7,2.3926055]
[1748850411966,0.7957,2507.9,2507.6,2.39268746]
[1748850412140,0.7957,2507.9,2507.5,2.39281725]
[1748850412664,0.7957,2507.9,2507.6,2.3927165]
[1748850412859,0.7957,2507.9,2507.5,2.39277771]
[1748850413174,1.1145065,2507.9,2507.5,2.39277395]
[1748850413799,3.54822721,2507.9,2507.4,2.39288145]
[1748850413938,1.1145065,2507.9,2507.4,2.39288145]
[1748850414580,0.7665,2507.8,2507.3,2.39300306]
[1748850414779,0.02,2507.9,2507.5,2.39278798]
[1748850414978,0.7665,2507.8,2507.5,2.39278798]
[1748850415345,0.7665,2507.8,2507.4,2.39288565]
[1748850415547,1.0843934,2507.8,2507.4,2.39288565]
[1748850416177,1.0843934,2507.8,2507.3,2.39298254]
[1748850416381,1.0843934,2507.8,2507.4,2.39286992]
[1748850417285,1.0843934,2507.8,2507.1,2.39313484]
[1748850417286,3.47693427,2507.8,2507.1,2.39313484]
[1748850417488,3.21843485,2507.7,2507.2,2.39309095]
[1748850417890,2.39274726,2507.6,2506.8,1.063]
[1748850418046,0.7981,2507.5,2507.3,2.39296449]
[1748850418683,0.7981,2507.5,2507.2,2.39308586]
[1748850419701,0.7981,2507.5,2507.4,2.39291696]
[1748850420268,2.41245887,2507.9,2507.4,2.39291696]
[1748850420269,8.7751,2507.9,2507.6,2.39269854]
[1748850421084,0.7751,2507.9,2507.7,2.39260357]
[1748850421278,0.7751,2507.9,2507.6,2.39267697]
[1748850422376,0.7751,2507.9,2507.5,2.39278998]
[1748850422693,7.28197424,2507.7,2506.6,2.39368068]
[1748850422874,0.7565,2507.8,2507.1,0.8112]
[1748850423074,0.7565,2507.8,2507.6,2.39271539]
[1748850423896,0.7565,2507.8,2507.5,2.3927774]
[1748850425017,0.7565,2507.8,2507.4,2.39287146]
[1748850425167,0.7565,2507.8,2507.2,4.086]
[1748850425168,2.39268462,2507.7,2507.2,4.086]
[1748850425366,2.39268462,2507.7,2507.2,6.47910611]
[1748850425776,0.791,2507.6,2507.2,2.39310611]
[1748850426172,1.23168701,2507.6,2507.1,2.39315979]
[1748850426376,1.23168701,2507.6,2507.0,2.39329283]
[1748850426377,0.791,2507.6,2507.0,2.39329283]
[1748850426593,0.791,2507.6,2507.2,2.39309801]
[1748850426763,0.791,2507.6,2507.1,2.39315619]
[1748850426968,3.18372723,2507.6,2507.1,2.39315619]
[1748850427566,0.791,2507.6,2507.1,2.39315619]
[1748850427767,3.18374574,2507.6,2507.1,2.39315619]
[1748850428000,11.86371772,2507.6,2507.0,2.3932958]
[1748850428496,2.39282199,2507.5,2507.0,2.3932958]
[1748850428698,0.7673,2507.4,2507.0,2.3932958]
[1748850430271,3.16022636,2507.4,2506.9,2.39337896]
[1748850430470,0.7673,2507.4,2506.8,2.39347154]
[1748850430828,0.7673,2507.4,2507.0,2.39321384]
[1748850431006,0.7673,2507.4,2507.1,2.39314527]
[1748850431564,0.7673,2507.4,2507.0,2.39324943]
[1748850432212,0.7673,2507.4,2507.0,2.39329627]
[1748850432417,0.7673,2507.4,2506.7,4.9053]
[1748850432716,0.7641,2507.6,2507.1,2.3932033]
[1748850433014,2.22972262,2507.6,2507.1,2.39310849]
[1748850436085,3.4995857,2507.0,2506.6,2.39367027]
[1748850436331,0.8093,2507.1,2506.6,2.39367027]
[1748850436530,3.20253372,2507.1,2506.6,2.39367027]
[1748850436735,3.4995857,2507.0,2506.3,3.21043588]
[1748850436906,2.39331552,2507.0,2505.8,2.39438578]
[1748850437121,3.20682993,2506.7,2505.9,0.8165]
[1748850437330,0.8132,2506.7,2506.2,2.39405719]
[1748850437483,2.10169197,2506.7,2506.1,2.39412124]
[1748850437687,0.8146,2506.6,2506.2,2.39404243]
[1748850437931,0.8146,2506.6,2505.9,4.9085]
[1748850438097,0.8146,2506.6,2506.0,2.39425379]
[1748850438529,0.8245,2506.9,2506.1,3.17935825]
[1748850438734,0.8245,2506.9,2506.5,2.39368667]
[1748850439040,0.8245,2506.9,2506.6,2.39364596]
[1748850439889,2.03722215,2506.9,2506.5,2.39377601]
[1748850440290,4.43061701,2506.9,2506.4,2.39381581]
[1748850440490,0.7874,2506.8,2506.3,2.39390765]
[1748850440890,0.7874,2506.8,2506.4,2.39383172]
[1748850442026,0.7874,2506.8,2506.3,2.39393194]
[1748850442239,0.7595,2506.7,2506.3,2.39393194]
[1748850442403,0.7595,2506.7,2506.2,2.39402383]
[1748850442608,0.7595,2506.4,2505.9,7.14429243]
[1748850442837,0.7595,2506.4,2505.7,0.7904]
[1748850443128,2.39412157,2506.2,2505.6,2.39457962]
[1748850443328,0.8251,2506.0,2505.6,2.39457962]
[1748850443919,0.8251,2506.0,2505.5,2.40963368]
[1748850444229,0.8251,2506.0,2505.6,2.39463458]
[1748850444456,0.8251,2506.0,2505.5,2.40964813]
[1748850444948,0.7888,2505.8,2505.5,0.01494779]
[1748850445098,2.63972077,2505.8,2505.5,0.01494779]
[1748850445293,2.39463601,2505.6,2505.5,0.01494779]
[1748850445519,0.7769,2505.6,2505.5,0.01494779]
[1748850448330,3.21280316,2505.6,2505.5,0.01494779]
[1748850448631,3.17153601,2505.6,2505.5,0.01494779]
[1748850448832,4.64171204,2505.6,2505.5,0.01494779]
[1748850449008,12.64171204,2505.6,2505.5,0.01494779]
[1748850449202,12.64171204,2505.6,2505.1,0.01]
[1748850449203,10.39491136,2505.4,2505.1,0.01]
[1748850449419,8.7545,2505.3,2505.1,0.01]
[1748850450296,0.7545,2505.3,2505.1,0.01]
[1748850450498,1.84340974,2505.2,2505.1,0.01]
[1748850450833,2.62770974,2505.2,2505.1,0.01]
[1748850451328,13.06399525,2505.2,2505.1,0.01]
[1748850451533,14.0847281,2505.2,2505.1,0.01]
[1748850452922,10.62770974,2505.2,2505.1,0.01]
[1748850453111,13.9423,2505.2,2505.1,0.01]
[1748850453427,16.33731836,2505.2,2505.1,0.01]
[1748850453929,13.9423,2505.2,2505.1,0.01]
[1748850454129,8.7843,2505.2,2505.1,0.01]
[1748850456637,11.17931836,2505.2,2505.1,0.01]
[1748850456842,20.09791173,2505.2,2505.1,0.01]
[1748850457502,25.25991173,2505.2,2505.1,0.01]
[1748850458098,20.09791173,2505.2,2505.1,0.01]
[1748850458298,22.86489337,2505.2,2505.1,0.01]
[1748850458715,25.25991173,2505.2,2505.1,0.01]
[1748850460717,10.41813184,2505.2,2505.1,0.01]
[1748850461918,0.7843,2505.2,2505.1,0.01]
[1748850462820,0.7659,2505.4,2505.1,0.01]
[1748850463021,0.7659,2505.6,2505.1,0.01]
[1748850463232,0.19999368,2506.5,2505.9,2.39430105]
[1748850463233,1.8289,2506.2,2505.9,2.39430105]
[1748850463654,1.8289,2506.2,2505.8,2.39440538]
[1748850463865,8.0,2506.1,2505.8,2.39440538]
[1748850464362,8.0,2506.1,2505.6,3.15081247]
[1748850464363,8.0,2506.1,2505.7,2.39449852]
[1748850464562,8.0,2506.1,2505.6,3.15080586]
[1748850465223,8.0,2506.1,2505.6,0.7562]
[1748850465536,8.0,2506.1,2505.5,2.39468717]
[1748850465736,10.89019674,2506.1,2505.4,0.8235]
[1748850466361,10.89019674,2506.1,2505.5,2.39472552]
[1748850466743,2.39426929,2506.0,2505.4,3.21828641]
[1748850466945,2.39435631,2505.9,2505.4,2.39478641]
[1748850467185,0.776,2505.8,2505.3,2.39488003]
[1748850467372,0.8003,2506.0,2505.5,2.39467983]
[1748850467677,4.9063,2506.0,2505.5,2.39467983]
[1748850469047,4.9063,2506.0,2505.6,2.39460448]
[1748850469883,0.8003,2506.0,2505.7,2.39453116]
[1748850470110,8.0,2505.9,2505.2,0.8299]
[1748850470263,8.0,2505.9,2505.3,2.39483285]
[1748850470264,10.39440581,2505.9,2505.3,2.39483285]
[1748850470593,10.39440581,2505.9,2505.3,2.39488497]
[1748850470802,13.12658658,2505.9,2505.3,2.39488497]
[1748850471103,13.12658658,2505.9,2505.4,2.39482389]
[1748850471482,8.0,2505.9,2505.6,2.39463035]
[1748850471680,2.64941744,2506.0,2505.7,2.39452671]
[1748850471681,0.8003,2506.0,2505.7,2.39452671]
[1748850471849,0.8003,2506.0,2505.6,2.39461281]
[1748850473824,0.8003,2506.0,2505.6,2.39463563]
[1748850476996,0.8003,2506.0,2505.4,2.39480722]
[1748850477183,0.8003,2506.0,2505.5,2.39466801]
[1748850477387,0.8003,2506.0,2505.4,2.39480722]
[1748850477388,2.37019052,2506.0,2505.2,0.8299]
[1748850477700,2.39442269,2505.9,2505.2,3.22489578]
[1748850477908,2.39442269,2505.9,2505.4,2.39477127]
[1748850478478,2.39442269,2505.9,2505.2,3.22489578]
[1748850478479,2.39442269,2505.9,2505.3,2.39486268]
[1748850478695,12.76446389,2506.0,2505.3,2.39486268]
[1748850478894,4.81012815,2505.9,2505.3,2.39486268]
[1748850479094,0.8065,2505.8,2505.3,2.39486268]